bitfinex-derivatives/quotes_ETHF0:USTF0_20210402
["timestamp","ask_amount","ask_price","bid_price","bid_amount"]
[1617363700412,0.48371448,2001.7,2001.5,1.29619988]
[1617363700613,1.99517964,2002.2,2001.5,1.29619988]
[1617363700813,2.93502545,2002.5,2001.5,1.29619988]
[1617363701213,2.93495357,2002.7,2001.5,1.29619988]
[1617363701515,2.93495357,2002.7,2002.6,2.90695]
[1617363701715,2.93495357,2002.7,2002.6,4.67975]
[1617363701918,2.93492243,2002.8,2002.6,4.67975]
[1617363703516,9.29996963,2002.9,2002.6,4.67975]
[1617363703920,6.72896963,2002.9,2002.6,4.67975]
[1617363707526,5.73016963,2002.9,2002.6,4.67975]
[1617363708248,5.73016963,2002.9,2002.6,2.90695]
[1617363708633,2.93491177,2002.8,2002.6,2.90695]
[1617363709036,75.4488,2002.7,2002.6,2.90695]
[1617363709234,76.4475,2002.7,2002.6,2.90695]
[1617363709435,80.21509914,2002.7,2002.6,2.90695]
[1617363709641,82.12334914,2002.7,2002.6,2.90695]
[1617363710132,85.06021798,2002.7,2002.6,2.90695]
[1617363711331,79.31072171,2002.7,2002.6,2.90695]
[1617363714536,78.31192171,2002.7,2002.6,4.67275]
[1617363716738,78.31192171,2002.7,2002.6,2.90695]
[1617363717937,75.40497171,2002.7,2001.9,1.547]
[1617363718141,75.40497171,2002.7,2001.4,1.7569]
[1617363718337,75.40497171,2002.7,2001.1,1.007]
[1617363718539,0.9539974,2002.6,2001.1,1.007]
[1617363720542,0.9539974,2002.6,2002.5,2.90695]
[1617363721543,74.45,2002.7,2002.5,2.90695]
[1617363721544,74.4051974,2002.7,2002.5,2.90695]
[1617363722044,75.4028974,2002.7,2002.5,2.90695]
[1617363722647,2.90695,2002.6,2002.5,2.90695]
[1617363722845,4.35285,2002.6,2002.5,2.90695]
[1617363723046,5.52313739,2002.6,2002.5,2.90695]
[1617363723248,4.35285,2002.6,2002.5,2.90695]
[1617363727549,1.4459,2002.6,2002.5,2.90695]
[1617363727949,1.16957827,2002.8,2002.5,2.90695]
[1617363728551,0.17077827,2002.8,2002.5,2.90695]
[1617363728753,2.90695,2002.6,2002.5,2.90695]
[1617363729155,0.17077827,2002.8,2002.5,2.90695]
[1617363729756,4.42766961,2003.2,2002.5,2.90695]
[1617363729757,2.04960492,2003.1,2002.5,2.90695]
[1617363730356,83.3177,2002.8,2002.5,2.90695]
[1617363730758,3.84255828,2002.7,2002.5,2.90695]
[1617363730959,0.93560828,2002.7,2002.5,2.90695]
[1617363731158,0.44964531,2002.6,2002.5,2.90695]
[1617363731759,0.44956782,2002.7,2002.5,2.90695]
[1617363733662,1.46286782,2002.7,2002.5,2.90695]
[1617363733860,0.44956782,2002.7,2002.5,2.90695]
[1617363734460,75.9458,2002.6,2002.5,2.90695]
[1617363735561,74.947,2002.6,2002.5,2.90695]
[1617363740966,75.9359,2002.6,2002.5,2.90695]
[1617363741267,74.947,2002.6,2002.5,2.90695]
[1617363742667,73.9482,2002.6,2002.5,2.90695]
[1617363749678,72.9494,2002.6,2002.5,2.90695]
[1617363756591,72.4843,2002.6,2002.5,2.90695]
[1617363765096,72.4843,2002.6,2002.5,4.61855]
[1617363765898,73.4699,2002.6,2002.5,4.61855]
[1617363766097,72.4843,2002.6,2002.5,2.90695]
[1617363767298,73.4948,2002.6,2002.5,2.90695]
[1617363767701,74.43064519,2002.6,2002.5,2.90695]
[1617363768099,73.4948,2002.6,2002.5,2.90695]
[1617363774605,74.66542116,2002.6,2002.5,2.90695]
[1617363775904,73.4948,2002.6,2002.5,2.90695]
[1617363778706,74.66575389,2002.6,2002.5,2.90695]
[1617363779307,73.4948,2002.6,2002.5,2.90695]
[1617363782211,72.4843,2002.6,2002.5,2.90695]
[1617363782510,74.54046095,2002.6,2002.5,2.90695]
[1617363782909,72.4843,2002.6,2002.5,2.90695]
[1617363788317,74.54045716,2002.6,2002.5,2.90695]
[1617363789020,73.4925,2002.6,2002.5,2.90695]
[1617363789420,72.4843,2002.6,2002.5,2.90695]
[1617363793021,73.4924,2002.6,2002.3,1.3906]
[1617363793522,7.13412964,2002.5,2002.3,1.3906]
[1617363794122,7.13412964,2002.5,2001.8,1.8948]
[1617363794322,7.13412964,2002.5,2001.1,1.2411]
[1617363794523,0.94028969,2001.9,2000.1,3.03749988]
[1617363794925,0.05876738,2001.2,2000.1,3.03749988]
[1617363795225,0.05876752,2001.3,2000.1,3.03749988]
[1617363795623,0.05876752,2001.3,2001.2,2.90695]
[1617363795825,0.05876752,2001.3,2001.2,5.68824988]
[1617363796427,0.05876715,2001.4,2001.2,5.68824988]
[1617363796826,0.05876639,2001.3,2001.2,5.68824988]
[1617363797526,0.05876571,2001.4,2001.2,5.68824988]
[1617363799331,0.05874244,2001.5,2001.2,5.68824988]
[1617363800031,0.05874063,2001.4,2001.2,5.68824988]
[1617363800232,0.05874063,2001.4,2001.2,4.20314988]
[1617363804637,0.70547827,2002.1,2001.2,4.20314988]
[1617363805039,1.17475636,2002.4,2001.2,4.20314988]
[1617363805642,1.17475636,2002.4,2002.3,2.90695]
[1617363806041,2.05877094,2002.5,2002.3,2.90695]
[1617363811453,1.17471951,2002.4,2002.3,2.90695]
[1617363811653,0.17671951,2002.4,2002.3,2.90695]
[1617363813756,2.6819802,2002.6,2002.3,4.18585]
[1617363814455,2.05869595,2002.6,2002.3,4.18585]
[1617363814655,1.06069595,2002.6,2002.3,4.18585]
[1617363815455,2.05289595,2002.6,2002.3,4.18585]
[1617363816656,1.05489595,2002.6,2002.3,4.18585]
[1617363817063,0.06269595,2002.6,2002.3,4.18585]
[1617363818258,2.90695,2002.8,2002.3,4.18585]
[1617363818660,5.24332822,2002.8,2002.3,4.18585]
[1617363819658,5.24332822,2002.8,2002.7,2.90695]
[1617363819859,2.94017822,2002.8,2002.7,2.90695]
[1617363820059,2.94000847,2003.0,2002.7,2.90695]
[1617363820462,4.11483703,2003.2,2002.7,2.90695]
[1617363820463,0.9011355,2003.1,2002.7,2.90695]
[1617363820860,4.11430943,2003.4,2002.7,2.90695]
[1617363820861,2.93947606,2003.4,2002.7,2.90695]
[1617363821063,2.93924386,2003.5,2002.7,2.90695]
[1617363821463,0.89850049,2003.7,2002.7,2.90695]
[1617363821662,0.34460049,2003.7,2002.7,2.90695]
[1617363821862,0.996,2003.9,2003.6,4.27655]
[1617363823669,0.018,2004.0,2003.6,4.27655]
[1617363823869,0.018,2004.0,2003.9,2.90695]
[1617363826975,2.07005246,2004.0,2003.9,2.90695]
[1617363830775,1.07205246,2004.0,2003.9,2.90695]
[1617363831177,2.90695,2004.1,2003.9,2.90695]
[1617363831377,64.6366,2004.0,2003.9,2.90695]
[1617363831778,65.53591098,2004.0,2003.9,2.90695]
[1617363832479,0.89931098,2004.0,2003.9,2.90695]
[1617363832880,2.90695,2004.1,2003.9,2.90695]
[1617363833482,2.0,2004.0,2003.9,2.90695]
[1617363833680,2.90695,2004.1,2003.9,2.90695]
[1617363833881,1.16904709,2004.0,2003.9,2.90695]
[1617363834482,4.90695,2004.1,2003.9,2.90695]
[1617363835087,2.90695,2004.1,2003.9,2.90695]
[1617363836288,2.0,2004.0,2003.9,2.90695]
[1617363837291,5.6281363,2004.0,2003.9,2.90695]
[1617363837690,4.7896363,2004.0,2003.9,2.90695]
[1617363838089,3.6281363,2004.0,2003.9,2.90695]
[1617363838695,3.6281363,2004.0,2002.1,1.3776]
[1617363838895,67.6575,2003.4,2001.9,1.29619988]
[1617363839891,67.6575,2003.4,2003.3,2.90695]
[1617363841992,70.56445,2003.4,2003.3,2.90695]
[1617363845598,67.6575,2003.4,2003.3,2.90695]
[1617363846999,69.2018,2003.4,2003.3,2.90695]
[1617363847700,1.5443,2003.4,2003.3,2.90695]
[1617363850506,3.84168556,2003.6,2003.3,2.90695]
[1617363850906,0.40931239,2003.5,2003.3,2.90695]
[1617363851909,2.90695,2003.6,2003.3,2.90695]
[1617363857110,3.84158174,2003.6,2003.3,2.90695]
[1617363859614,2.0,2003.5,2003.3,2.90695]
[1617363859814,1.5324,2003.5,2003.3,2.90695]
[1617363860015,0.40931819,2003.4,2003.3,2.90695]
[1617363860614,0.40931819,2003.4,2000.6,0.9943]
[1617363860815,67.6891,2002.6,2000.6,0.9943]
[1617363861016,67.6891,2002.6,2001.8,14.7517]
[1617363861215,67.6891,2002.6,2000.6,0.9943]
[1617363862018,67.6891,2002.6,2002.5,2.90695]
[1617363892353,0.70260099,2002.8,2002.5,2.90695]
[1617363894453,73.1277,2003.0,2002.5,2.90695]
[1617363894853,0.70257116,2002.9,2002.5,2.90695]
[1617363896257,0.70257116,2002.9,2002.8,2.90695]
[1617363900360,0.93789007,2002.9,2002.8,2.90695]
[1617363908574,74.30024879,2003.0,2002.8,2.90695]
[1617363909275,0.9380181,2002.9,2002.8,2.90695]
[1617363910278,74.30019281,2003.0,2002.8,2.90695]
[1617363911876,0.93794299,2002.9,2002.8,2.90695]
[1617363912277,74.30012894,2003.0,2002.8,2.90695]
[1617363913477,1.17242894,2003.0,2002.8,2.90695]
[1617363913678,1.17242894,2003.0,2002.8,2.65965]
[1617363913877,1.17242894,2003.0,2002.8,2.08745]
[1617363914079,1.17252676,2002.9,2002.8,2.08745]
[1617363914477,4.07947676,2002.9,2002.8,2.08745]
[1617363914678,4.49874856,2002.9,2002.8,2.08745]
[1617363916480,3.3262218,2002.9,2002.8,2.08745]
[1617363918982,4.49850478,2002.9,2002.8,2.08745]
[1617363919381,3.3262218,2002.9,2002.8,2.08745]
[1617363920583,4.49851212,2002.9,2002.8,2.08745]
[1617363920882,3.3262218,2002.9,2002.8,2.08745]
[1617363921485,5.38295701,2002.9,2002.8,2.08745]
[1617363921886,3.3262218,2002.9,2002.8,2.08745]
[1617363931192,5.38232758,2002.9,2002.8,2.08745]
[1617363934293,3.3262218,2002.9,2002.8,2.08745]
[1617363938200,5.38228169,2002.9,2002.8,2.08745]
[1617363942504,3.3262218,2002.9,2002.8,2.08745]
[1617363942903,6.26401005,2002.9,2001.3,1.4843]
[1617363943103,68.6109,2002.2,2001.1,2.0]
[1617363943305,0.70437066,2002.1,2001.1,2.0]
[1617363943504,0.70437066,2002.1,2001.0,1.0064]
[1617363943704,1.13306731,2002.1,2000.9,2.0]
[1617363944503,1.13306731,2002.1,2002.0,2.90695]
[1617363946205,69.31527892,2002.2,2002.0,2.90695]
[1617363946706,0.70438078,2002.1,2002.0,2.90695]
[1617363951613,69.31525664,2002.2,2002.0,2.90695]
[1617363953315,0.70435664,2002.2,2002.0,2.90695]
[1617363953516,0.70435664,2002.2,2002.0,4.81215]
[1617363953717,0.70435664,2002.2,2002.1,2.0]
[1617363954317,0.70427119,2002.3,2002.1,2.0]
[1617363954917,2.05705876,2002.9,2002.1,2.0]
[1617363954918,0.64581249,2002.6,2002.1,2.0]
[1617363956235,75.0394,2002.4,2002.1,2.0]
[1617363956627,0.42084834,2002.3,2002.1,2.0]
[1617363956824,0.42084834,2002.3,2002.0,1.9052]
[1617363957028,75.0394,2002.4,2002.2,2.0]
[1617363958125,1.17388139,2002.8,2002.2,2.0]
[1617363958725,1.17388139,2002.8,2002.7,2.90695]
[1617363959326,2.05722714,2003.0,2002.7,2.90695]
[1617363959725,2.05720284,2002.9,2002.7,2.90695]
[1617363960326,1.17386271,2002.8,2002.7,2.90695]
[1617363961128,2.05720777,2002.9,2002.7,2.90695]
[1617363961527,0.42836403,2002.8,2002.7,2.90695]
[1617363961729,1.17384524,2002.8,2002.7,2.90695]
[1617363961929,0.17624524,2002.8,2002.7,2.90695]
[1617363962229,0.59655887,2002.8,2002.7,2.90695]
[1617363962529,0.17624524,2002.8,2002.7,2.90695]
[1617363968932,1.23580903,2003.0,2002.7,2.90695]
[1617363970535,0.42031606,2003.2,2002.7,2.90695]
[1617363970733,0.42031606,2003.2,2003.1,2.90695]
[1617363975940,6.25259384,2003.3,2003.1,2.90695]
[1617363978643,3.31496606,2003.3,2003.1,2.90695]
[1617363979342,2.05681142,2003.2,2003.1,2.90695]
[1617363982947,5.25442496,2003.3,2003.1,2.90695]
[1617363984045,2.05683277,2003.2,2003.1,2.90695]
[1617363985247,3.06583277,2003.2,2003.1,2.90695]
[1617363987651,73.61763277,2003.2,2003.1,2.90695]
[1617363987951,77.15757666,2003.2,2003.1,2.90695]
[1617363988952,75.10074389,2003.2,2003.1,2.90695]
[1617363989152,4.54894389,2003.2,2003.1,2.90695]
[1617363989551,1.009,2003.2,2003.1,2.90695]
[1617363989951,0.0114,2003.2,2003.1,2.90695]
[1617363990251,0.0114,2003.2,2003.1,4.81435]
[1617363991051,4.37380777,2003.3,2003.1,4.81435]
[1617363991752,2.04878307,2003.2,2003.1,2.90695]
[1617363992151,2.05645852,2003.2,2003.1,2.90695]
[1617363992351,3.94885852,2003.2,2003.1,2.90695]
[1617363992553,1.8924,2003.2,2003.1,2.90695]
[1617363993653,6.24047613,2003.3,2003.1,2.90695]
[1617363994454,2.93681571,2003.2,2003.1,2.90695]
[1617363996156,6.24058308,2003.3,2003.1,2.90695]
[1617363996758,9.82051366,2003.3,2003.1,2.90695]
[1617363996959,8.82291366,2003.3,2003.1,2.90695]
[1617363999867,2.0564139,2003.2,2003.1,2.90695]
[1617364002469,5.24277025,2003.3,2003.1,2.90695]
[1617364004171,4.24517025,2003.3,2003.1,2.90695]
[1617364011177,3.24757025,2003.3,2003.1,2.90695]
[1617364012679,2.05643446,2003.2,2003.1,2.90695]
[1617364013280,4.96338446,2003.2,2003.1,2.90695]
[1617364014080,2.90695,2003.2,2003.1,2.90695]
[1617364018183,1.90935,2003.2,2003.1,2.90695]
[1617364020088,3.9654169,2003.2,2003.1,2.90695]
[1617364020887,3.9654169,2003.2,2001.1,2.571]
[1617364021085,0.05867777,2001.8,2001.1,2.571]
[1617364021287,75.18197777,2001.8,2001.7,2.90695]
[1617364021886,75.1233,2001.8,2001.7,2.90695]
[1617364022084,0.70419442,2002.2,2001.7,2.90695]
[1617364022287,0.70419939,2002.1,2001.7,4.90695]
[1617364022489,0.70420369,2002.2,2001.7,4.90695]
[1617364023286,0.70420099,2002.1,2001.7,2.0]
[1617364023486,0.70420278,2002.2,2001.7,2.0]
[1617364024088,0.70420278,2002.2,2001.2,2.0]
[1617364024287,80.4676,2001.7,2001.2,2.0]
[1617364024690,0.05868364,2001.6,2001.2,2.0]
[1617364025389,0.05868364,2001.6,2001.5,2.90695]
[1617364025589,80.52628367,2001.7,2001.5,2.90695]
[1617364025989,0.05868379,2001.6,2001.5,2.90695]
[1617364028291,80.52626584,2001.7,2001.5,2.90695]
[1617364028591,0.05866772,2001.6,2001.5,2.90695]
[1617364032498,80.4676,2001.7,2001.5,2.90695]
[1617364042305,0.05863967,2001.6,2001.5,2.90695]
[1617364046116,80.4676,2001.7,2001.5,2.90695]
[1617364050221,0.05859954,2001.6,2001.5,2.90695]
[1617364054132,56.66469954,2001.6,2001.5,2.90695]
[1617364054741,56.6061,2001.6,2001.5,2.90695]
[1617364055139,56.66468562,2001.6,2001.5,2.90695]
[1617364055840,56.6061,2001.6,2001.5,2.90695]
[1617364056441,56.66468604,2001.6,2001.5,2.90695]
[1617364056641,56.66468604,2001.6,2001.5,4.90695]
[1617364058741,0.05858604,2001.6,2001.5,4.90695]
[1617364059342,0.05858604,2001.6,2001.5,6.40155]
[1617364059742,0.058582,2001.7,2001.5,6.40155]
[1617364060141,68.70357809,2002.4,2001.5,6.40155]
[1617364060342,0.93731205,2002.4,2001.5,7.40985]
[1617364061746,0.93717011,2002.5,2001.5,6.40155]
[1617364061945,0.93717011,2002.5,2002.4,2.90695]
[1617364062147,1.5992036,2002.6,2002.4,2.90695]
[1617364063647,1.5992036,2002.6,2002.4,4.26275]
[1617364063849,0.9371699,2002.5,2002.4,4.26275]
[1617364064049,1.36507107,2002.5,2002.4,4.26275]
[1617364064551,0.9371699,2002.5,2002.4,4.26275]
[1617364066955,1.36478177,2002.8,2002.4,4.26275]
[1617364067157,1.26536995,2002.8,2002.4,4.26275]
[1617364067358,0.4207512,2002.7,2002.4,4.26275]
[1617364067758,68.3411,2002.9,2002.4,4.26275]
[1617364067959,68.3411,2002.9,2002.8,2.90695]
[1617364068157,2.90695,2003.0,2002.8,2.90695]
[1617364068358,73.63905,2003.0,2002.8,2.90695]
[1617364070859,74.81017387,2003.0,2002.8,2.90695]
[1617364074162,74.23248931,2003.0,2002.8,2.90695]
[1617364074765,73.06136544,2003.0,2002.8,2.90695]
[1617364076762,74.23285441,2003.0,2002.8,2.90695]
[1617364079768,74.23285441,2003.0,2002.8,4.31475]
[1617364079970,73.06136544,2003.0,2002.8,4.31475]
[1617364081170,72.06366544,2003.0,2002.8,4.31475]
[1617364082370,72.06366544,2003.0,2002.8,2.90695]
[1617364083472,73.23540185,2003.0,2002.8,2.90695]
[1617364084173,2.50330185,2003.0,2002.8,2.90695]
[1617364084374,59.4714,2002.8,2001.5,1.4946]
[1617364084574,34.47440185,2003.0,2001.1,16.6302]
[1617364084775,59.4714,2001.9,2001.1,17.9427]
[1617364084976,59.4714,2001.9,2001.1,3.3125]
[1617364085879,59.4714,2001.9,2001.1,2.0]
[1617364086077,59.4714,2001.9,2001.8,2.90695]
[1617364087379,60.4811,2001.9,2001.8,2.90695]
[1617364087778,59.4714,2001.9,2001.8,2.90695]
[1617364087978,2.90695,2002.4,2001.8,2.90695]
[1617364088179,1.90925,2002.4,2001.8,2.90695]
[1617364088380,60.7176,2002.2,2001.8,2.90695]
[1617364088980,1.90925,2002.4,2001.8,2.90695]
[1617364089983,1.90925,2002.4,2002.3,2.90695]
[1617364091183,1.17186321,2002.8,2002.3,2.90695]
[1617364091383,56.7658,2002.5,2002.3,2.90695]
[1617364093787,1.0,2002.6,2002.3,2.90695]
[1617364093986,4.07875879,2002.9,2002.3,2.90695]
[1617364094791,1.17180879,2002.9,2002.3,2.90695]
[1617364095186,0.17410879,2002.9,2002.3,2.90695]
[1617364095387,64.93835247,2003.2,2002.3,2.90695]
[1617364096089,62.8849,2003.2,2003.1,2.02355136]
[1617364096289,62.8849,2003.2,2003.1,3.44295136]
[1617364096689,64.93828529,2003.2,2003.1,3.44295136]
[1617364099194,2.05338529,2003.2,2003.1,3.44295136]
[1617364099993,82.14458529,2003.2,2003.1,3.44295136]
[1617364100494,84.77625963,2003.2,2003.1,3.44295136]
[1617364102196,83.77855963,2003.2,2003.1,3.44295136]
[1617364102597,82.72287434,2003.2,2003.1,3.44295136]
[1617364105201,80.0912,2003.2,2003.1,3.44295136]
[1617364106001,3.21801606,2003.3,2003.1,3.44295136]
[1617364107302,2.90695,2003.3,2003.1,3.44295136]
[1617364107503,5.52968816,2003.3,2003.1,3.44295136]
[1617364108506,2.62273816,2003.3,2003.1,3.44295136]
[1617364108906,2.93208919,2003.7,2003.1,3.44295136]
[1617364109109,0.93727801,2003.3,2003.1,3.44295136]
[1617364109309,0.33927651,2003.5,2003.1,3.44295136]
[1617364109508,0.39325656,2003.2,2003.1,3.44295136]
[1617364109908,0.02,2003.5,2003.1,3.44295136]
[1617364110108,0.02,2003.5,2003.4,2.90695]
[1617364111209,0.41254776,2003.5,2003.4,2.90695]
[1617364112011,0.02,2003.5,2003.4,2.90695]
[1617364112412,0.02,2003.5,2003.4,4.90695]
[1617364113013,0.02,2003.5,2003.4,14.89695]
[1617364116215,0.19249524,2004.2,2003.4,14.89695]
[1617364116816,2.05065167,2004.5,2003.4,14.89695]
[1617364117216,0.37479652,2004.1,2003.4,14.89695]
[1617364117617,2.05065167,2004.5,2003.4,14.89695]
[1617364118019,2.04994411,2004.6,2003.4,14.89695]
[1617364118219,2.04994411,2004.6,2004.5,4.22495]
[1617364120622,3.30202386,2004.8,2004.5,4.22495]
[1617364120623,2.04986401,2004.7,2004.5,4.22495]
[1617364121223,0.69977533,2004.7,2004.5,4.22495]
[1617364122625,1.07454108,2004.8,2004.5,4.22495]
[1617364123026,0.69975553,2004.8,2004.5,4.22495]
[1617364123225,6.80380553,2004.9,2004.5,4.22495]
[1617364123831,6.80380553,2004.9,2004.5,2.90695]
[1617364124227,6.80380553,2004.9,2003.4,12.9814]
[1617364124228,6.80380553,2004.9,2004.8,2.90695]
[1617364136441,6.80380553,2004.9,2004.8,4.74485]
[1617364138341,5.80710553,2004.9,2004.8,4.74485]
[1617364140742,6.79800553,2004.9,2004.8,4.74485]
[1617364141843,5.80710553,2004.9,2004.8,4.74485]
[1617364145348,4.81040553,2004.9,2004.8,4.74485]
[1617364145949,4.81040553,2004.9,2004.8,2.90695]
[1617364149154,61.62010553,2004.9,2004.8,2.90695]
[1617364152258,60.62340553,2004.9,2004.8,2.90695]
[1617364158974,3.81370553,2004.9,2004.8,2.90695]
[1617364159375,2.81700553,2004.9,2004.8,2.90695]
[1617364166280,1.82030553,2004.9,2004.8,2.90695]
[1617364173287,0.82360553,2004.9,2004.8,2.90695]
[1617364180294,0.82200553,2005.6,2004.8,2.90695]
[1617364180696,0.82200553,2005.6,2005.5,2.90695]
[1617364182295,76.4347,2005.7,2005.5,2.90695]
[1617364182896,3.83801687,2006.1,2005.5,2.90695]
[1617364183295,0.69831797,2005.8,2005.5,2.90695]
[1617364184795,3.60526797,2005.8,2005.5,2.90695]
[1617364185096,1.12104781,2005.7,2005.5,2.90695]
[1617364185298,82.5925,2005.6,2005.5,2.90695]
[1617364185498,83.5798,2005.6,2005.5,2.90695]
[1617364187398,82.5831,2005.6,2005.5,2.90695]
[1617364187598,83.2814451,2005.6,2005.5,2.90695]
[1617364189100,83.75018973,2005.6,2005.5,2.90695]
[1617364190202,82.5831,2005.6,2005.5,2.90695]
[1617364191203,82.52942616,2005.6,2005.5,2.90695]
[1617364191604,81.5958,2005.6,2005.5,2.90695]
[1617364194521,80.5991,2005.6,2005.5,2.90695]
[1617364194731,1.9301,2005.6,2005.5,1.93255]
[1617364194909,31.9301,2005.6,2005.5,0.97445]
[1617364195109,33.09721407,2005.6,2005.5,5e-05]
[1617364195308,35.09721407,2005.6,2005.5,5e-05]
[1617364195509,37.50728308,2005.6,2005.5,5e-05]
[1617364195710,39.55277171,2005.6,2005.5,5e-05]
[1617364196309,37.50728308,2005.6,2005.5,5e-05]
[1617364196510,67.8786,2005.5,2003.4,9.99]
[1617364196708,0.70037212,2004.9,2003.4,9.99]
[1617364196909,1.70257212,2004.9,2004.8,2.90695]
[1617364197109,3.167131,2004.9,2004.8,2.90695]
[1617364197510,2.6597981,2004.9,2004.8,2.90695]
[1617364197810,3.55163033,2004.9,2004.8,2.90695]
[1617364198112,3.55163033,2004.9,2004.8,1.95445]
[1617364198512,4.48553453,2004.9,2004.8,1.95445]
[1617364198912,3.5937023,2004.9,2004.8,1.95445]
[1617364200614,4.71065152,2004.9,2004.8,1.95445]
[1617364201415,3.71395152,2004.9,2004.8,1.95445]
[1617364202116,1.6630981,2004.9,2004.8,1.95445]
[1617364202316,1.6630981,2004.9,2003.4,9.99]
[1617364202516,75.9199,2004.8,2003.4,9.99]
[1617364202716,2.0,2004.7,2003.4,9.99]
[1617364202917,2.21301332,2004.2,2003.4,9.99]
[1617364203519,64.0144,2003.7,2003.4,9.99]
[1617364203718,65.6069,2003.7,2003.4,9.99]
[1617364204822,65.6069,2003.7,2003.6,2.90695]
[1617364209028,1.5925,2003.7,2003.6,2.90695]
[1617364209230,0.70226498,2004.0,2003.6,2.90695]
[1617364209428,0.7022831,2003.9,2003.6,2.90695]
[1617364209628,1.7010831,2003.9,2003.6,2.90695]
[1617364209829,0.70232629,2003.7,2003.4,9.95105]
[1617364210028,2.19152629,2003.7,2003.4,9.65105]
[1617364210229,1.4892,2003.7,2003.4,9.65105]
[1617364210429,1.13916329,2003.6,2003.4,9.65105]
[1617364210834,0.70185901,2003.5,2003.4,9.65105]
[1617364211029,3.60880901,2003.5,2003.4,9.65105]
[1617364211230,3.3439074,2003.5,2003.4,9.65105]
[1617364211429,3.3439074,2003.5,2003.4,7.89015]
[1617364211630,4.28005562,2003.5,2003.4,3.47565]
[1617364212029,3.3439074,2003.5,2003.4,3.47565]
[1617364212630,33.3439074,2003.5,2003.4,3.47565]
[1617364213031,34.25212776,2003.5,2003.4,3.47565]
[1617364213431,34.90695,2003.5,2002.8,2.8698]
[1617364213630,34.90695,2003.5,2002.8,0.378]
[1617364214030,1.13432088,2003.4,2002.8,0.378]
[1617364214435,0.69861849,2003.3,2002.8,0.378]
[1617364215032,2.90695,2002.9,2002.8,0.378]
[1617364215231,2.90695,2002.9,2001.1,28.0152]
[1617364215232,4.15725,2002.9,2001.1,28.0152]
[1617364215432,81.5827,2002.8,2001.1,28.0152]
[1617364215632,81.5827,2002.8,2001.1,30.0152]
[1617364216934,81.5827,2002.8,2002.5,2.90695]
[1617364217531,81.5827,2002.8,2001.1,30.0152]
[1617364218933,111.5827,2002.8,2002.3,2.90695]
[1617364220540,111.5827,2002.8,2001.1,30.0152]
[1617364220740,30.0,2002.8,2001.1,28.0152]
[1617364220941,82.1117,2001.8,2001.1,28.0152]
[1617364221140,83.8488,2001.8,2001.1,14.3703]
[1617364221341,83.8488,2001.8,2000.0,2.0]
[1617364222142,84.8494,2001.8,2000.0,2.0]
[1617364222542,2.7377,2001.8,2000.0,2.0]
[1617364222744,2.7377,2001.8,1999.7,2.0]
[1617364222943,61.6785,2000.9,1999.7,2.0]
[1617364223644,2.90695,2001.5,1999.7,2.0]
[1617364224245,2.90695,2001.5,2000.5,2.0]
[1617364225046,2.90695,2001.5,2001.4,2.90695]
[1617364225249,1.0109,2001.6,2001.4,2.90695]
[1617364225449,1.0006,2001.8,2001.5,66.4044]
[1617364225649,1.0006,2001.8,2001.5,67.7378]
[1617364226049,1.0109,2002.7,2001.5,69.7378]
[1617364227055,3.91785,2002.7,2002.6,2.90695]
[1617364227254,1.0109,2002.7,2002.6,4.90465]
[1617364227454,1.0109,2002.7,2002.6,1.9977]
[1617364227654,8.0023,2001.7,2001.5,3.3334]
[1617364228754,8.0023,2001.7,2001.6,67.6538]
[1617364229155,8.0023,2001.7,2001.6,70.56075]
[1617364230255,8.0023,2001.7,2001.6,2.90695]
[1617364230456,3.91785,2002.7,2001.6,2.90695]
[1617364230656,3.91785,2002.7,2001.6,4.90695]
[1617364231156,3.91785,2002.7,2002.6,4.66585]
[1617364233955,2.90695,2002.7,2002.6,4.66585]
[1617364236057,3.89515,2002.7,2002.6,4.66585]
[1617364242269,73.04315,2002.7,2002.6,4.66585]
[1617364245471,2.90695,2002.7,2002.6,4.66585]
[1617364246072,0.9836,2003.3,2002.6,4.66585]
[1617364246471,0.9853,2003.9,2002.6,4.66585]
[1617364246674,2.9853,2003.9,2002.6,4.66585]
[1617364247273,2.9853,2003.9,2003.1,2.90695]
[1617364247471,2.9853,2003.9,2003.1,4.73935]
[1617364247873,0.9853,2003.9,2003.1,4.73935]
[1617364249075,2.9853,2003.9,2003.1,4.73935]
[1617364249274,2.90695,2003.2,2003.1,4.73935]
[1617364249475,3.89445,2003.2,2003.1,4.73935]
[1617364252193,0.9853,2003.9,2003.1,4.73935]
[1617364253182,0.9853,2003.9,2003.5,2.90695]
[1617364253382,2.0,2004.3,2003.5,2.90695]
[1617364253584,1.9882,2004.3,2003.5,2.90695]
[1617364255185,2.90695,2003.6,2003.5,2.90695]
[1617364258087,2.90695,2003.6,2003.1,1.8324]
[1617364258289,2.90695,2003.6,2002.6,1.7589]
[1617364258489,2.90695,2003.6,2001.8,2.0]
[1617364259189,82.2165,2003.8,2003.4,2.90695]
[1617364260392,81.2194,2003.8,2003.4,2.90695]
[1617364261292,2.90695,2003.5,2003.4,2.90695]
[1617364267401,1.90985,2003.5,2003.4,2.90695]
[1617364268404,70.41195,2003.5,2003.4,2.90695]
[1617364274209,1.90985,2003.5,2003.4,2.90695]
[1617364274410,1.90985,2003.5,2003.4,4.60585]
[1617364274611,0.91275,2003.5,2003.4,4.60585]
[1617364278115,0.996,2003.9,2003.4,4.60585]
[1617364279116,2.62916009,2004.4,2003.4,4.60585]
[1617364279316,0.05816009,2004.4,2003.4,4.60585]
[1617364279516,0.05816009,2004.4,2003.9,4.24235]
[1617364280519,62.06825443,2004.6,2003.9,4.24235]
[1617364281518,61.07115443,2004.6,2004.4,2.90695]
[1617364281720,61.07115443,2004.6,2004.4,4.85045]
[1617364281924,61.013,2004.6,2004.4,4.85045]
[1617364282723,61.013,2004.6,2004.4,1.9435]
[1617364283425,2.90695,2004.5,2004.4,1.9435]
[1617364283627,3.90435,2004.5,2004.4,1.9435]